bitfinex/quotes_BTCUSD_20250711
["timestamp","ask_amount","ask_price","bid_price","bid_amount"]
[1752228875955,0.60792636,118110.0,118100.0,0.61284697]
[1752228877030,0.61828741,118110.0,118100.0,0.61284697]
[1752228877684,0.180563,118110.0,118100.0,0.61284697]
[1752228877902,0.61828741,118110.0,118100.0,0.46812697]
[1752228878109,0.61862741,118110.0,118100.0,0.51039619]
[1752228878534,1.01862741,118110.0,118100.0,0.51039619]
[1752228878966,0.61862741,118110.0,118100.0,0.51039619]
[1752228879369,1.01862741,118110.0,118100.0,0.51039619]
[1752228880829,1.01564741,118110.0,118100.0,0.59786612]
[1752228881040,1.01530741,118110.0,118100.0,0.61240697]
[1752228881419,0.580543,118110.0,118100.0,0.61240697]
[1752228881648,1.01826741,118110.0,118100.0,0.61240697]
[1752228882411,1.01652746,118110.0,118100.0,0.61240697]
[1752228882689,0.57880305,118110.0,118100.0,0.61240697]
[1752228882854,1.00661422,118110.0,118100.0,0.61240697]
[1752228883880,1.00661422,118110.0,118100.0,0.61036697]
[1752228884952,1.00661422,118110.0,118100.0,0.50975619]
[1752228885163,1.00695422,118110.0,118100.0,0.50975619]
[1752228888931,0.60695422,118110.0,118100.0,0.50975619]
[1752228893062,1.00695422,118110.0,118100.0,0.50975619]
[1752228893846,1.59309209,118110.0,118100.0,0.36815619]
[1752228894061,1.59309209,118110.0,118100.0,0.4836]
[1752228894310,1.59309209,118110.0,118100.0,0.34268]
[1752228895179,1.67852202,118110.0,118100.0,0.34268]
[1752228895815,1.68698805,118110.0,118100.0,0.34268]
[1752228896170,1.72164272,118110.0,118100.0,0.34268]
[1752228896545,1.73010897,118110.0,118100.0,0.28708]
[1752228896757,1.67808202,118110.0,118100.0,0.28708]
[1752228896959,1.72808202,118110.0,118100.0,0.28708]
[1752228897244,1.73654813,118110.0,118100.0,0.28708]
[1752228897444,1.77120294,118110.0,118100.0,0.28708]
[1752228897646,1.72120301,118110.0,118100.0,0.28708]
[1752228897795,1.77120294,118110.0,118100.0,0.28708]
[1752228898402,1.76273669,118110.0,118100.0,0.28608]
[1752228898672,1.75427058,118110.0,118100.0,0.28608]
[1752228898872,1.70427058,118110.0,118100.0,0.28608]
[1752228899083,1.75427058,118110.0,118100.0,0.28608]
[1752228899292,1.75727058,118110.0,118100.0,0.28508]
[1752228899701,1.68977712,118110.0,118100.0,0.28508]
[1752228899896,1.70224323,118110.0,118100.0,0.28508]
[1752228900134,1.70224315,118110.0,118100.0,0.28508]
[1752228900335,1.55329712,118110.0,118100.0,0.28508]
[1752228900557,1.47710856,118110.0,118100.0,0.31322154]
[1752228900778,0.61395422,118110.0,118100.0,0.31322154]
[1752228900986,0.56045422,118110.0,118100.0,0.31530154]
[1752228901205,0.56079422,118110.0,118100.0,0.45566154]
[1752228901414,0.90401422,118110.0,118100.0,0.45358154]
[1752228901591,0.56401422,118110.0,118100.0,0.45358154]
[1752228901801,0.90401422,118110.0,118100.0,0.45358154]
[1752228901956,1.04437422,118110.0,118100.0,0.45358154]
[1752228902573,0.34034,118100.0,118090.0,0.00109413]
[1752228902773,1.3938534,118100.0,118090.0,0.00109413]
[1752228904404,1.3958534,118100.0,118090.0,0.00109413]
[1752228904813,1.40466475,118100.0,118090.0,0.00109413]
[1752228905005,1.69286341,118100.0,118090.0,0.00109413]
[1752228905213,0.06280747,118090.0,118080.0,0.002]
[1752228905414,1.05305663,118090.0,118080.0,0.002]
[1752228905614,0.8272667,118090.0,118080.0,0.002]
[1752228905811,0.9675867,118090.0,118080.0,0.002]
[1752228906089,0.9929847,118090.0,118080.0,0.002]
[1752228906552,0.9929847,118090.0,118080.0,0.00408]
[1752228906553,0.9665447,118090.0,118080.0,0.00408]
[1752228906753,0.7931447,118090.0,118080.0,0.00711]
[1752228906954,0.7934847,118090.0,118080.0,0.14739]
[1752228907168,0.7954447,118090.0,118080.0,0.16055309]
[1752228909444,0.7934847,118090.0,118080.0,0.16358309]
[1752228910222,0.7944847,118090.0,118080.0,0.16358309]
[1752228911299,0.366738,118090.0,118080.0,0.16358309]
[1752228911504,0.7944847,118090.0,118080.0,0.16358309]
[1752228912572,0.7964847,118090.0,118080.0,0.16358309]
[1752228913007,0.7961447,118090.0,118080.0,0.17812394]
[1752228913214,0.4561447,118090.0,118080.0,0.29045387]
[1752228913418,0.028398,118090.0,118080.0,0.31655387]
[1752228913631,0.4561447,118090.0,118080.0,0.31655387]
[1752228915704,0.028398,118090.0,118080.0,0.31655387]
[1752228915904,0.4561447,118090.0,118080.0,0.31655387]
[1752228916236,0.028398,118090.0,118080.0,0.31655387]
[1752228916439,0.4307467,118090.0,118080.0,0.31655387]
[1752228919825,0.3487467,118090.0,118080.0,0.40299387]
[1752228920034,0.00209,118090.0,118080.0,0.39996387]
[1752228920244,0.4298367,118090.0,118080.0,0.39996387]
[1752228920859,0.4298367,118090.0,118080.0,0.40298387]
[1752228922169,0.4277467,118090.0,118080.0,0.40298387]
[1752228922908,0.87573102,118090.0,118080.0,0.40298387]
[1752228924994,0.87782102,118090.0,118080.0,0.39996387]
[1752228925270,0.00209,118090.0,118080.0,0.39996387]
[1752228925485,0.87782102,118090.0,118080.0,0.39996387]
[1752228925920,0.00209,118090.0,118080.0,0.40298387]
[1752228926128,0.43786551,118090.0,118080.0,0.40298387]
[1752228926303,0.46325851,118090.0,118080.0,0.40298387]
[1752228926464,0.46325851,118090.0,118080.0,0.43048387]
[1752228927092,0.025393,118090.0,118080.0,0.43048387]
[1752228927292,0.46325851,118090.0,118080.0,0.43048387]
[1752228927495,0.46325851,118090.0,118080.0,0.40298387]
[1752228927666,0.025393,118090.0,118080.0,0.40298387]
[1752228928087,0.90112402,118090.0,118080.0,0.40298387]
[1752228929862,0.025393,118090.0,118080.0,0.40298387]
[1752228930061,0.46325851,118090.0,118080.0,0.40298387]
[1752228930285,0.56325851,118090.0,118080.0,0.42918387]
[1752228930820,0.125393,118090.0,118080.0,0.45718387]
[1752228931027,0.53786551,118090.0,118080.0,0.79592387]
[1752228931857,0.1,118090.0,118080.0,0.79592387]
[1752228932054,0.53786551,118090.0,118080.0,0.79592387]
[1752228932658,0.1,118090.0,118080.0,0.79792387]
[1752228933314,0.1,118090.0,118080.0,0.79592387]
[1752228933523,0.08612161,118090.0,118080.0,0.79592387]
[1752228934150,0.52398712,118090.0,118080.0,0.79592387]
[1752228934720,0.52398712,118090.0,118080.0,0.79892387]
[1752228935107,0.52398712,118090.0,118080.0,0.79692387]
[1752228935304,0.52398712,118090.0,118080.0,0.79992387]
[1752228936326,0.08612161,118090.0,118080.0,0.79992387]
[1752228936532,0.52398712,118090.0,118080.0,0.79892387]
[1752228936747,1.01784263,118090.0,118080.0,0.42916993]
[1752228936963,1.36121263,118090.0,118080.0,0.62534]
[1752228937172,0.48548161,118090.0,118080.0,0.62234]
[1752228937381,1.36121263,118090.0,118080.0,0.62434]
[1752228937588,1.38660963,118090.0,118080.0,0.62434]
[1752228937803,1.38660963,118090.0,118080.0,0.682774]
[1752228938007,1.38760963,118090.0,118080.0,0.682774]
[1752228938619,1.38660963,118090.0,118080.0,0.682774]
[1752228939023,0.93863685,118090.0,118080.0,0.682774]
[1752228939982,0.93963685,118090.0,118080.0,0.682774]
[1752228940393,0.51187861,118090.0,118080.0,0.682774]
[1752228940606,1.33963685,118090.0,118080.0,0.682774]
[1752228943357,0.91187861,118090.0,118080.0,0.682774]
[1752228943582,1.33963685,118090.0,118080.0,0.682774]
[1752228946748,0.88573685,118090.0,118080.0,0.684874]
[1752228947241,1.28573685,118090.0,118080.0,0.684874]
[1752228947481,0.11251861,118090.0,118080.0,0.81456478]
[1752228947698,0.54027685,118090.0,118080.0,0.84196478]
[1752228948182,0.51487985,118090.0,118080.0,0.84196478]
[1752228948404,0.51487985,118090.0,118080.0,0.81456478]
[1752228949260,0.08712161,118090.0,118080.0,0.81456478]
[1752228949475,0.51487985,118090.0,118080.0,0.81456478]
[1752228949684,0.08712161,118090.0,118080.0,0.81456478]
[1752228950086,0.51487985,118090.0,118080.0,0.81456478]
[1752228950583,0.08712161,118090.0,118080.0,0.81456478]
[1752228950805,0.51487985,118090.0,118080.0,0.81456478]
[1752228951222,0.08712161,118090.0,118080.0,0.81456478]
[1752228951428,0.51487985,118090.0,118080.0,0.81456478]
[1752228952061,0.51487985,118090.0,118080.0,0.78786478]
[1752228952721,0.08712161,118090.0,118080.0,0.78786478]
[1752228952904,0.51487985,118090.0,118080.0,0.78786478]
[1752228953457,0.08712161,118090.0,118080.0,0.78786478]
[1752228953663,0.51487985,118090.0,118080.0,0.78786478]
[1752228954526,0.08712161,118090.0,118080.0,0.78786478]
[1752228954921,0.51487985,118090.0,118080.0,0.78786478]
[1752228955123,0.08712161,118090.0,118080.0,0.78786478]
[1752228955364,0.51487985,118090.0,118080.0,0.78786478]
[1752228956000,0.51487985,118090.0,118080.0,0.81386478]
[1752228956408,0.08712161,118090.0,118080.0,0.84036478]
[1752228956822,0.51487985,118090.0,118080.0,0.84036478]
[1752228957848,0.51387985,118090.0,118080.0,0.84136478]
[1752228958256,0.51387985,118090.0,118080.0,0.84236478]
[1752228958845,0.51387985,118090.0,118080.0,0.84136478]
[1752228959052,0.51387985,118090.0,118080.0,0.84336478]
[1752228959903,0.51387985,118090.0,118080.0,0.81686478]
[1752228960087,0.08612161,118090.0,118080.0,0.81686478]
[1752228960304,0.51387985,118090.0,118080.0,0.81686478]
[1752228960636,0.51387985,118090.0,118080.0,0.84366478]
[1752228960842,0.5239026,118090.0,118080.0,0.84366478]
[1752228962752,0.08612161,118090.0,118080.0,0.84366478]
[1752228962958,0.5239026,118090.0,118080.0,0.84366478]
[1752228963425,0.5239026,118090.0,118080.0,1.04666478]
[1752228964364,0.08612161,118090.0,118080.0,1.04666478]
[1752228964571,0.5239026,118090.0,118080.0,1.04666478]
[1752228965009,0.5259326,118090.0,118080.0,0.99084478]
[1752228965218,0.5239026,118090.0,118080.0,0.99406478]
[1752228965571,0.5239026,118090.0,118080.0,1.02136478]
[1752228967589,0.08612161,118090.0,118080.0,1.02136478]
[1752228967816,0.5239026,118090.0,118080.0,1.02136478]
[1752228969836,0.5259326,118090.0,118080.0,0.99084478]
[1752228970054,0.5239026,118090.0,118080.0,0.99406478]
[1752228970661,0.5239026,118090.0,118080.0,1.01956478]
[1752228975275,0.08612161,118090.0,118080.0,1.01956478]
[1752228975492,0.5239026,118090.0,118080.0,1.01956478]
[1752228976401,0.51002385,118090.0,118080.0,1.04686478]
[1752228982507,0.07224286,118090.0,118080.0,1.04686478]
[1752228982912,0.51002385,118090.0,118080.0,1.04686478]
[1752228983486,0.07224286,118090.0,118080.0,1.04686478]
[1752228983686,0.51002385,118090.0,118080.0,1.04686478]
[1752228986352,0.49614616,118090.0,118080.0,1.04686478]
[1752228986563,0.05836517,118090.0,118080.0,1.04686478]
[1752228986708,0.49614616,118090.0,118080.0,1.04686478]
[1752228988659,0.05836517,118090.0,118080.0,1.04686478]
[1752228988871,0.49614616,118090.0,118080.0,1.04686478]
[1752228989901,0.49614616,118090.0,118080.0,0.99406478]
[1752228990237,0.93392715,118090.0,118080.0,0.79106478]
[1752228990440,0.96432715,118090.0,118080.0,0.99084478]
[1752228990641,0.52654616,118090.0,118080.0,0.99084478]
[1752228990789,0.52336616,118090.0,118080.0,0.99084478]
[1752228992474,0.52336616,118090.0,118080.0,0.99408478]
[1752228992705,0.08558517,118090.0,118080.0,0.99408478]
[1752228992901,0.52336616,118090.0,118080.0,0.99408478]
[1752228994263,0.52336616,118090.0,118080.0,0.99084478]
[1752228994909,1.99710558,118090.0,118060.0,0.002]
[1752228995043,0.46123346,118070.0,118060.0,0.002]
[1752228995244,0.54868339,118070.0,118060.0,0.002]
[1752228995447,0.55186339,118070.0,118060.0,0.002]
[1752228995672,0.97726639,118070.0,118060.0,0.002]
[1752228995875,1.41470738,118070.0,118060.0,0.002]
[1752228996079,1.85282837,118070.0,118060.0,0.28108]
[1752228996479,1.32961745,118070.0,118060.0,0.28108]
[1752228997054,1.32861745,118070.0,118060.0,0.28108]
[1752228997514,1.32761745,118070.0,118060.0,0.28108]
[1752228997873,1.32961745,118070.0,118060.0,0.28108]
[1752228998080,1.33061745,118070.0,118060.0,0.28108]
[1752228999371,1.26312399,118070.0,118060.0,0.28108]
[1752228999791,0.825343,118070.0,118060.0,0.28108]
[1752229000005,0.86312399,118070.0,118060.0,0.28108]
[1752229001025,0.853151,118070.0,118060.0,0.28108]
[1752229002696,0.425343,118070.0,118060.0,0.28108]
[1752229002907,0.853151,118070.0,118060.0,0.28108]
[1752229005424,0.425003,118070.0,118060.0,0.28108]
[1752229005628,0.370423,118070.0,118060.0,0.63645085]
[1752229005835,0.456211,118070.0,118060.0,0.72512078]
[1752229006042,0.028403,118070.0,118060.0,0.72512078]
[1752229006246,0.456211,118070.0,118060.0,0.72512078]
[1752229006417,0.430808,118070.0,118060.0,0.72512078]
[1752229007202,0.428808,118070.0,118060.0,0.72512078]
[1752229007650,0.001,118070.0,118060.0,0.72512078]
[1752229007819,0.428808,118070.0,118060.0,0.72512078]
[1752229008028,0.427808,118070.0,118060.0,0.75052078]
[1752229008214,0.428808,118070.0,118060.0,0.75052078]
[1752229008413,0.001,118070.0,118060.0,0.75052078]
[1752229008634,0.001,118070.0,118060.0,0.77562078]
[1752229008867,0.101,118070.0,118060.0,0.77562078]
[1752229010040,0.528808,118070.0,118060.0,0.72496078]
[1752229010399,0.528808,118070.0,118060.0,0.75206078]
[1752229010816,0.101,118070.0,118060.0,0.75206078]
[1752229011021,0.528808,118070.0,118060.0,0.75206078]
[1752229012034,0.101,118070.0,118060.0,0.75206078]
[1752229012860,0.101,118070.0,118060.0,0.77856078]
[1752229013486,0.10049389,118070.0,118060.0,0.77856078]
[1752229014956,0.52830189,118070.0,118060.0,0.72496078]
[1752229017721,0.10049389,118070.0,118060.0,0.75196078]
[1752229018564,0.52830189,118070.0,118060.0,0.75196078]
[1752229019754,0.10049389,118070.0,118060.0,0.75196078]
[1752229019937,0.52830189,118070.0,118060.0,0.72496078]
[1752229020321,0.52830189,118070.0,118060.0,0.44604078]
[1752229020532,0.58770189,118070.0,118060.0,0.70494993]
[1752229020795,0.58770189,118070.0,118060.0,0.61952]
[1752229021001,0.59798347,118070.0,118060.0,0.61952]
[1752229021387,0.62338047,118070.0,118060.0,0.61952]
[1752229021584,0.62338047,118070.0,118060.0,0.63406085]
[1752229023355,0.62338047,118070.0,118060.0,0.61952]
[1752229025046,0.96338047,118070.0,118060.0,0.61952]
[1752229029011,1.40181005,118070.0,118060.0,0.6194]
[1752229029679,0.96372047,118070.0,118060.0,0.6194]
[1752229031442,1.40181005,118070.0,118060.0,0.6194]
[1752229031654,0.96372047,118070.0,118060.0,0.6194]
[1752229033196,1.48723998,118070.0,118060.0,0.6194]
[1752229033421,1.0491504,118070.0,118060.0,0.6194]
[1752229033635,1.48723998,118070.0,118060.0,0.6194]
[1752229034134,1.0491504,118070.0,118060.0,0.6194]
[1752229034253,1.48723998,118070.0,118060.0,0.6194]
[1752229034812,1.0491504,118070.0,118060.0,0.6194]
[1752229036360,1.48723998,118070.0,118060.0,0.6194]
[1752229038609,1.0491504,118070.0,118060.0,0.6194]
[1752229039260,0.52529089,118070.0,118060.0,0.6194]
[1752229039466,0.93331047,118070.0,118060.0,0.62144]
[1752229039713,0.49857089,118070.0,118060.0,0.62144]
[1752229039924,0.96526047,118070.0,118060.0,0.6194]
[1752229040296,1.48877998,118070.0,118060.0,0.6194]
[1752229045462,1.0506904,118070.0,118060.0,0.6194]
[1752229045677,0.62526047,118070.0,118060.0,0.6194]
[1752229045830,0.15857089,118070.0,118060.0,0.62144]
[1752229046041,0.59666047,118070.0,118060.0,0.62144]
[1752229046251,0.93666047,118070.0,118060.0,0.62144]
[1752229048253,0.93365047,118070.0,118060.0,0.62144]
[1752229048484,0.49556089,118070.0,118060.0,0.62144]
[1752229048698,0.93365047,118070.0,118060.0,0.62144]
[1752229048840,1.33365047,118070.0,118060.0,0.62144]
[1752229050209,0.87858347,118070.0,118060.0,0.63891085]
[1752229050424,0.53858347,118070.0,118060.0,0.66601085]
[1752229050630,0.87858347,118070.0,118060.0,0.66601085]
[1752229050957,0.53858347,118070.0,118060.0,0.77944078]
[1752229052314,0.53858347,118070.0,118060.0,0.75144078]
[1752229054961,0.53858347,118070.0,118060.0,0.72434078]
[1752229055771,0.08230973,118070.0,118060.0,1.21783036]
[1752229056150,0.08230973,118070.0,118060.0,0.82940078]
[1752229056785,0.08230973,118070.0,118060.0,0.85453175]
[1752229057524,0.08230973,118070.0,118060.0,0.85653175]
[1752229057934,0.08230973,118070.0,118060.0,0.86053175]
[1752229058103,0.08230973,118070.0,118060.0,0.85853175]
[1752229059470,0.08230973,118070.0,118060.0,0.86053175]
[1752229060461,0.52039931,118070.0,118060.0,0.86053175]
[1752229061139,0.52039931,118070.0,118060.0,1.15743175]
[1752229062598,0.08230973,118070.0,118060.0,1.15743175]
[1752229062772,0.08230973,118070.0,118060.0,1.13230078]
[1752229063577,0.08210971,118070.0,118060.0,1.13230078]
[1752229065274,0.52019929,118070.0,118060.0,1.13230078]
[1752229066038,0.52019929,118070.0,118060.0,1.08264078]
[1752229067612,0.08210971,118070.0,118060.0,1.08264078]
[1752229067817,0.52019929,118070.0,118060.0,1.08264078]
[1752229069807,0.52019929,118070.0,118060.0,1.05444078]
[1752229070010,0.52019929,118070.0,118060.0,1.02724078]
[1752229070863,0.52019929,118070.0,118060.0,1.02524078]
[1752229071064,0.52019929,118070.0,118060.0,1.05084078]
[1752229071289,0.52019929,118070.0,118060.0,1.05284078]
[1752229072676,0.52019929,118070.0,118060.0,1.02320078]
[1752229072886,0.52019929,118070.0,118060.0,0.72630078]
[1752229073514,0.08210971,118070.0,118060.0,0.72630078]
[1752229073918,0.52019929,118070.0,118060.0,0.72630078]
[1752229076678,0.52019929,118070.0,118060.0,0.75320078]
[1752229077240,0.50631888,118070.0,118060.0,0.75320078]
[1752229080042,0.56201888,118070.0,118060.0,0.72337078]
[1752229080193,0.53561888,118070.0,118060.0,0.72337078]
[1752229080358,0.50631888,118070.0,118060.0,0.72641078]
[1752229080797,0.0682293,118070.0,118060.0,0.78111078]
[1752229081014,0.0682293,118070.0,118060.0,0.83077078]
[1752229081898,0.0682293,118070.0,118060.0,1.26886036]
[1752229082183,0.0682293,118070.0,118060.0,0.83077078]
[1752229083216,0.0682293,118070.0,118060.0,1.26886036]
[1752229083619,0.0682293,118070.0,118060.0,0.83077078]
[1752229084746,0.0682293,118070.0,118060.0,1.12767078]
[1752229085330,0.05435093,118070.0,118060.0,1.12767078]
[1752229085988,0.05435093,118070.0,118060.0,1.12735078]
[1752229088549,0.05435093,118070.0,118060.0,1.07769078]
[1752229088756,0.05435093,118070.0,118060.0,1.12735078]
[1752229092926,0.05435093,118070.0,118060.0,1.56544036]
[1752229093771,0.05435093,118070.0,118060.0,1.12735078]
[1752229094191,0.05435093,118070.0,118060.0,1.56544036]
[1752229094872,0.05435093,118070.0,118060.0,1.26854036]
[1752229095084,0.0372016,118070.0,118060.0,1.65854036]
[1752229095300,0.05836517,118090.0,118080.0,0.51060085]
[1752229095511,0.05836517,118090.0,118080.0,1.46503232]
[1752229095713,0.05836517,118090.0,118080.0,2.10372232]
[1752229096173,0.04,118100.0,118090.0,0.12030085]
[1752229096385,0.04,118100.0,118090.0,1.12761212]
[1752229096607,0.03154131,118100.0,118090.0,1.46633212]
[1752229097010,0.02308262,118100.0,118090.0,1.46633212]
[1752229097222,0.102,118110.0,118100.0,0.50710085]
[1752229097424,0.09354131,118110.0,118100.0,1.30958036]
[1752229097576,0.09354131,118110.0,118100.0,1.65132036]
[1752229097779,0.08508262,118110.0,118100.0,1.17192466]
[1752229098016,0.08508262,118110.0,118100.0,1.16868466]
[1752229099998,0.08508262,118110.0,118100.0,1.11856466]
[1752229100198,0.08508262,118110.0,118100.0,1.06890466]
[1752229100411,0.08508262,118110.0,118100.0,1.11856466]
[1752229100610,0.08508262,118110.0,118100.0,1.14357188]
[1752229101691,0.08508262,118110.0,118100.0,1.19357188]
[1752229102348,0.08508262,118110.0,118100.0,1.14357188]
[1752229102558,0.08508262,118110.0,118100.0,1.14657188]
[1752229102761,0.08508262,118110.0,118100.0,1.19657188]
[1752229103827,0.08508262,118110.0,118100.0,1.14657188]
[1752229104023,0.08508262,118110.0,118100.0,1.19657188]
[1752229104227,0.08508262,118110.0,118100.0,1.14657188]
[1752229104432,0.08508262,118110.0,118100.0,1.19657188]
[1752229104844,0.08508262,118110.0,118100.0,1.17257188]
[1752229105048,0.08508262,118110.0,118100.0,1.24466146]
[1752229105456,0.08508262,118110.0,118100.0,1.54156146]
[1752229105665,0.08508262,118110.0,118100.0,1.10347188]
[1752229105880,0.08508262,118110.0,118100.0,1.93586146]
[1752229105881,0.0766271,118110.0,118100.0,1.93586146]
[1752229106110,0.0766271,118110.0,118100.0,2.71162846]
[1752229106320,0.03857726,118110.0,118100.0,2.53683146]
[1752229106525,4e-05,118120.0,118110.0,1.49092859]
[1752229106733,0.10204,118150.0,118140.0,0.06420085]
[1752229106934,0.10204,118150.0,118140.0,1.04912352]
[1752229107111,0.10204,118150.0,118140.0,1.05213352]
[1752229108074,0.10204,118150.0,118140.0,1.04709352]
[1752229108679,0.56982958,118150.0,118140.0,0.99942352]
[1752229109014,0.16209,118150.0,118140.0,0.72087352]
[1752229109220,0.22958346,118150.0,118140.0,0.99839352]
[1752229110688,0.65657403,118150.0,118140.0,0.99839352]
[1752229111092,0.22958346,118150.0,118140.0,0.99839352]
[1752229111313,0.22958346,118150.0,118140.0,0.71607078]
[1752229111519,0.16209,118150.0,118140.0,0.71607078]
[1752229115099,0.58908057,118150.0,118140.0,0.70128993]
[1752229116022,0.58908057,118150.0,118140.0,0.70028993]
[1752229117410,0.58908057,118150.0,118140.0,0.61486]
[1752229119987,0.58942057,118150.0,118140.0,0.61486]
[1752229120239,1.01641114,118150.0,118140.0,0.61486]
[1752229120477,1.01841114,118150.0,118140.0,0.61486]
[1752229120670,1.01841114,118150.0,118140.0,0.47666]
[1752229121223,0.16443,118150.0,118140.0,0.47666]
[1752229121420,1.01841114,118150.0,118140.0,0.47666]
[1752229123236,1.35841114,118150.0,118140.0,0.33858]
[1752229123460,1.44384107,118150.0,118140.0,0.33858]
[1752229123866,1.46922507,118150.0,118140.0,0.33858]
[1752229124065,1.49414232,118150.0,118140.0,0.33858]
[1752229124261,1.89414232,118150.0,118140.0,0.33858]
[1752229124492,1.89214232,118150.0,118140.0,0.33858]
[1752229124691,2.03014232,118150.0,118140.0,0.33858]
[1752229124892,2.03314232,118150.0,118140.0,0.31008]
[1752229125216,2.03314232,118150.0,118140.0,0.28278]
[1752229125421,2.04160556,118150.0,118140.0,0.21517448]
[1752229125839,2.03314232,118150.0,118140.0,0.21517448]
[1752229126040,2.04160549,118150.0,118140.0,0.21517448]
[1752229126777,2.03314232,118150.0,118140.0,0.21517448]
[1752229127570,1.63314232,118150.0,118140.0,0.21517448]
[1752229127785,1.82880924,118150.0,118140.0,0.20671821]
[1752229127986,0.05634,118110.0,118100.0,0.002]
[1752229128270,1.25239114,118110.0,118100.0,0.002]
[1752229128449,1.36637025,118110.0,118100.0,0.002]
[1752229128624,0.39634,118090.0,118080.0,0.002]
[1752229128827,0.9108305,118090.0,118080.0,0.002]
[1752229129168,1.90115235,118090.0,118080.0,0.002]
[1752229130212,1.92655035,118090.0,118080.0,0.002]
[1752229130422,1.93501789,118090.0,118080.0,0.002]
[1752229130623,1.92655035,118090.0,118080.0,0.002]
[1752229130824,1.3695946,118090.0,118080.0,0.002]
[1752229131023,1.5075946,118090.0,118080.0,0.002]
[1752229133791,1.5085946,118090.0,118080.0,0.002]
[1752229136475,1.1085946,118090.0,118080.0,0.002]
[1752229138361,0.9702546,118090.0,118080.0,0.002]
[1752229138569,0.54516467,118090.0,118080.0,0.002]
[1752229138769,0.68304467,118090.0,118080.0,0.002]
[1752229139048,1.02304467,118090.0,118080.0,0.34074]
[1752229139362,0.51940499,118090.0,118080.0,0.34074]
[1752229139566,0.46374499,118090.0,118080.0,0.34074]
[1752229139775,0.80059499,118090.0,118080.0,0.34074]
[1752229140118,0.77119699,118090.0,118080.0,0.34074]
[1752229140352,0.43019699,118090.0,118080.0,0.34074]
[1752229140532,0.77630699,118090.0,118080.0,0.34074]
[1752229140731,0.77730699,118090.0,118080.0,0.34074]
[1752229140940,0.77630699,118090.0,118080.0,0.34074]
[1752229141192,0.77330699,118090.0,118080.0,0.34074]
[1752229141415,0.77430699,118090.0,118080.0,0.34074]
[1752229141642,0.77630699,118090.0,118080.0,0.34074]
[1752229143802,0.97014699,118090.0,118080.0,0.34074]
[1752229144011,1.05557692,118090.0,118080.0,0.34074]
[1752229144401,1.08097392,118090.0,118080.0,0.34074]
[1752229145043,1.50876091,118090.0,118080.0,0.34074]
[1752229145455,1.37092091,118090.0,118080.0,0.34074]
[1752229145702,1.50872091,118090.0,118080.0,0.34074]
[1752229146313,0.65314693,118090.0,118080.0,0.34074]
[1752229146773,0.65214693,118090.0,118080.0,0.34074]
[1752229146970,0.65414693,118090.0,118080.0,0.34074]
[1752229147679,0.68000965,118090.0,118080.0,0.34074]
[1752229147913,0.67796965,118090.0,118080.0,0.34074]
[1752229148361,0.68196965,118090.0,118080.0,0.34074]
[1752229149935,0.68196965,118090.0,118080.0,0.33227735]
[1752229149936,0.73196965,118090.0,118080.0,0.33227735]
[1752229150147,0.54420965,118090.0,118080.0,0.33227735]
[1752229150348,0.62592965,118090.0,118080.0,0.33227735]
[1752229150810,0.65352965,118090.0,118080.0,0.33227735]
[1752229151016,0.51580965,118090.0,118080.0,0.33227735]
[1752229151130,0.65352965,118090.0,118080.0,0.33227735]
[1752229153031,0.68222965,118090.0,118080.0,0.33227735]
[1752229156152,0.373807,118090.0,118080.0,0.33442735]
[1752229156296,0.373807,118090.0,118080.0,0.33741735]
[1752229156297,0.371737,118090.0,118080.0,0.33741735]
[1752229156502,0.509377,118090.0,118080.0,0.36661735]
[1752229157148,0.371737,118090.0,118080.0,0.50425735]
[1752229157321,0.369737,118090.0,118080.0,0.50425735]
[1752229157522,0.507377,118090.0,118080.0,0.50425735]
[1752229159121,0.025397,118090.0,118080.0,0.39301735]
[1752229159469,0.14866349,118110.0,118090.0,0.0546]
[1752229159631,0.14866349,118110.0,118080.0,0.44888728]
[1752229159833,0.00034,118100.0,118090.0,0.48279]
[1752229160031,0.027389,118110.0,118090.0,0.57324993]
[1752229160254,0.00234,118110.0,118100.0,0.0561]
[1752229160603,0.00234,118110.0,118100.0,0.40629]
[1752229160834,0.00434,118110.0,118100.0,0.40629]
[1752229161331,0.00234,118110.0,118100.0,0.40629]
[1752229162011,0.00834,118110.0,118100.0,0.40629]
[1752229165190,0.3981,118100.0,118060.0,0.18517176]
[1752229165397,0.3981,118100.0,118060.0,0.00498]
[1752229165398,0.00034,118070.0,118060.0,0.00498]
[1752229165605,0.00034,118070.0,118060.0,0.00703]
[1752229165811,0.00034,118070.0,118060.0,0.34583]
[1752229166484,0.00034,118070.0,118060.0,0.48331]
[1752229167942,0.00034,118070.0,118060.0,0.48431]
[1752229170197,0.76461615,118080.0,118060.0,0.48431]
[1752229170417,0.76754615,118080.0,118060.0,0.48431]
[1752229171405,0.76754615,118080.0,118060.0,0.48331]
[1752229171624,0.7634003,118080.0,118060.0,0.48431]
[1752229172804,0.7604703,118080.0,118060.0,0.51141]
[1752229173033,0.7604703,118080.0,118060.0,0.54121]
[1752229174593,0.001713,118070.0,118060.0,0.54121]
[1752229175351,0.001713,118070.0,118060.0,0.54021]
[1752229175709,0.001713,118070.0,118060.0,0.54121]
[1752229176482,0.001713,118070.0,118060.0,0.53618]
[1752229177098,0.001713,118070.0,118060.0,0.50638]
[1752229180073,0.001713,118070.0,118060.0,0.3418]
[1752229180348,0.001713,118070.0,118060.0,0.47908]
[1752229184514,0.001713,118070.0,118060.0,0.3418]
[1752229184772,0.55083639,118070.0,118060.0,0.3418]
[1752229185000,0.55083639,118070.0,118060.0,0.33333811]
[1752229185001,0.57623939,118070.0,118060.0,0.33333811]
[1752229185472,0.50874593,118070.0,118060.0,0.32487622]
[1752229186422,0.370116,118070.0,118060.0,0.32387622]
[1752229186896,0.373116,118070.0,118060.0,0.32387622]
[1752229187394,0.370116,118070.0,118060.0,0.32387622]
[1752229187634,0.369116,118070.0,118060.0,0.32387622]
[1752229189143,0.367116,118070.0,118060.0,0.32387622]
[1752229189279,0.367116,118070.0,118060.0,0.32064008]
[1752229189482,0.368116,118070.0,118060.0,0.32064008]
[1752229189921,0.056,118060.0,118050.0,0.2854241]
[1752229190122,0.48142993,118060.0,118050.0,0.0111441]
[1752229190350,0.90693178,118060.0,118050.0,0.0111441]
[1752229190498,0.80447041,118050.0,118040.0,0.00206]
[1752229190696,0.88142993,118050.0,118040.0,0.00206]
[1752229190925,0.056,118040.0,118030.0,0.13712]
[1752229191224,0.056,118040.0,118020.0,0.002]
[1752229191225,0.396,118030.0,118020.0,0.002]
[1752229191338,0.88142993,118030.0,118020.0,0.13912]
[1752229192370,0.88142993,118030.0,118020.0,0.13908]